bitfinex/quotes_ETHUSD_20241231
["timestamp","ask_amount","ask_price","bid_price","bid_amount"]
[1735638165927,5.94161,3399.5,3399.1,0.812]
[1735638166270,3.0,3399.5,3399.1,0.812]
[1735638166479,2.94186,3399.2,3399.1,0.812]
[1735638170315,3.35632431,3399.5,3399.1,0.812]
[1735638170752,2.94179,3399.3,3399.1,0.812]
[1735638171553,3.0,3399.5,3399.1,0.812]
[1735638171739,5.94163,3399.5,3399.1,0.812]
[1735638174218,2.94145,3399.7,3399.1,0.812]
[1735638174613,2.94152,3399.6,3399.1,0.812]
[1735638177249,2.94152,3399.6,3399.1,1.5432]
[1735638178674,0.8314,3399.6,3399.2,0.06984376]
[1735638178837,2.94167,3399.5,3399.2,0.06984376]
[1735638180384,2.94171,3399.4,3399.2,0.06984376]
[1735638180584,2.94178,3399.3,3399.2,0.06984376]
[1735638180835,2.94178,3399.3,3398.9,0.8037]
[1735638180994,2.94178,3399.3,3399.2,0.06955858]
[1735638181203,2.94178,3399.3,3398.9,0.8037]
[1735638181836,2.94164,3399.5,3399.0,0.06955858]
[1735638183731,2.94174,3399.4,3399.0,0.06955858]
[1735638183950,0.8314,3399.6,3399.0,0.06955858]
[1735638184108,2.94192,3399.2,3399.0,0.06955858]
[1735638184950,2.94192,3399.2,3398.7,0.8037]
[1735638185101,2.94192,3399.2,3399.1,0.06968616]
[1735638185302,2.94192,3399.2,3398.7,0.8037]
[1735638185506,3.0,3399.5,3398.8,0.06968616]
[1735638185812,2.94173,3399.4,3398.8,0.06968616]
[1735638186421,0.8314,3399.6,3398.8,0.06968616]
[1735638186628,2.94179,3399.3,3398.8,0.06968616]
[1735638186926,2.94179,3399.3,3398.7,0.8037]
[1735638187252,2.94179,3399.3,3398.9,0.06968616]
[1735638187549,2.94179,3399.3,3399.0,0.06968616]
[1735638187958,2.94179,3399.3,3398.7,0.8037]
[1735638188122,2.94179,3399.3,3399.1,0.06968616]
[1735638188312,2.94179,3399.3,3398.7,0.8037]
[1735638188513,2.94179,3399.3,3399.2,0.06968616]
[1735638188812,2.94179,3399.3,3398.7,0.8037]
[1735638189222,2.94162,3399.5,3398.8,0.06968616]
[1735638189452,2.94169,3399.4,3398.8,0.06968616]
[1735638191822,2.94181,3399.3,3398.8,0.06968616]
[1735638192253,2.94181,3399.3,3398.7,0.8037]
[1735638192467,2.94181,3399.3,3398.9,0.06750578]
[1735638192769,2.94181,3399.3,3398.7,0.8037]
[1735638192931,2.94181,3399.3,3399.0,0.06750578]
[1735638193130,2.94181,3399.3,3398.7,0.8037]
[1735638193354,2.94181,3399.3,3398.7,1.178325]
[1735638193555,2.94181,3399.3,3398.8,0.06750578]
[1735638193759,2.94181,3399.3,3398.7,1.178325]
[1735638194067,2.94181,3399.3,3398.9,0.06750578]
[1735638194266,2.94181,3399.3,3398.8,0.06749828]
[1735638194472,2.94181,3399.3,3398.7,1.178325]
[1735638194631,2.94164,3399.5,3398.9,0.06749828]
[1735638194824,2.94175,3399.4,3398.7,0.8037]
[1735638195042,1.25079725,3399.2,3399.0,0.06749078]
[1735638195333,2.94182,3399.3,3398.7,0.8037]
[1735638195528,2.94182,3399.3,3399.1,0.06753577]
[1735638195744,1.25079725,3399.4,3398.7,0.8037]
[1735638196070,1.25079725,3399.4,3399.2,0.06753577]
[1735638196224,4.19251725,3399.4,3399.2,0.06753577]
[1735638196431,1.25079725,3399.6,3398.5,0.55]
[1735638196752,1.25079725,3399.6,3398.3,1.80079725]
[1735638196753,2.94163,3399.5,3398.7,0.7636]
[1735638197335,2.94163,3399.5,3398.8,0.06752078]
[1735638200189,2.9417,3399.4,3398.8,0.06752078]
[1735638202488,2.94192,3399.2,3398.8,0.06752078]
[1735638202863,2.94192,3399.2,3398.7,0.7636]
[1735638203187,2.94202,3399.1,3398.9,0.06745329]
[1735638203371,2.94202,3399.1,3398.7,0.7636]
[1735638203577,5.00630725,3399.3,3399.0,0.06745329]
[1735638203776,5.00630725,3399.3,3398.7,0.7636]
[1735638204094,3.75551,3399.3,3399.1,0.06745329]
[1735638204389,3.75551,3399.3,3398.7,0.7636]
[1735638204584,3.75551,3399.3,3399.2,0.06745329]
[1735638204747,3.75551,3399.3,3398.7,0.7636]
[1735638204948,3.75551,3399.3,3399.2,0.06745329]
[1735638205176,5.00630725,3399.3,3398.7,0.7636]
[1735638205489,1.25079725,3399.3,3399.2,0.06745329]
[1735638205693,1.25079725,3399.3,3398.7,0.7636]
[1735638206054,4.19257725,3399.3,3398.7,0.7636]
[1735638206254,4.19257725,3399.3,3398.8,0.06743829]
[1735638206687,0.8137,3399.6,3398.7,0.7636]
[1735638206864,2.06449725,3399.6,3399.0,0.7636]
[1735638207564,2.06449725,3399.6,3399.1,0.06731832]
[1735638208296,3.0,3399.5,3399.1,0.06731832]
[1735638209897,5.94161,3399.5,3399.1,0.06731832]
[1735638211099,2.06449725,3399.6,3399.1,0.06731832]
[1735638211283,2.94172,3399.4,3399.1,0.06731832]
[1735638211805,2.94184,3399.3,3399.1,0.06731832]
[1735638211961,2.94186,3399.2,3399.1,0.06731832]
[1735638213005,2.94186,3399.2,3399.0,0.7636]
[1735638213174,1.25079725,3399.1,3399.0,0.7636]
[1735638214605,4.19257725,3399.3,3399.0,0.7636]
[1735638215899,2.94188,3399.2,3399.0,0.7636]
[1735638217202,2.94188,3399.2,3398.4,4.16951473]
[1735638217362,2.94188,3399.2,3398.8,0.7937]
[1735638220800,2.94172,3399.4,3398.8,0.7937]
[1735638221027,1.25079725,3399.3,3398.8,0.7937]
[1735638222305,2.94189,3399.2,3398.8,0.7937]
[1735638223399,2.94189,3399.2,3398.9,0.06728085]
[1735638224194,2.94202,3399.1,3398.9,0.06728085]
[1735638224400,2.94202,3399.1,3398.8,0.7937]
[1735638224571,2.94202,3399.1,3398.9,0.06728085]
[1735638224771,2.94202,3399.1,3398.8,0.7937]
[1735638224971,2.94202,3399.1,3398.9,0.06728085]
[1735638225286,2.94202,3399.1,3398.8,0.7937]
[1735638225715,1.25079725,3399.0,3398.9,0.06728085]
[1735638226212,4.19261725,3399.3,3398.9,0.06728085]
[1735638226423,4.19261725,3399.3,3398.8,0.7937]
[1735638226718,3.08299064,3399.4,3398.8,0.7937]
[1735638226913,1.25079725,3399.4,3398.9,0.06744581]
[1735638227117,1.25079725,3399.4,3398.8,0.7937]
[1735638227320,1.25079725,3399.4,3399.0,0.06744581]
[1735638227520,3.0,3399.5,3398.9,0.8313]
[1735638227814,3.0,3399.5,3399.2,0.8313]
[1735638227990,4.25079725,3399.6,3399.3,0.06744581]
[1735638228313,1.25079725,3399.5,3399.2,0.8313]
[1735638229215,1.25079725,3399.5,3399.3,0.06740081]
[1735638229649,1.25079725,3399.5,3399.2,0.8313]
[1735638229775,1.25079725,3399.5,3399.4,0.06740081]
[1735638229975,1.25079725,3399.5,3399.2,0.8313]
[1735638230190,1.25079725,3399.5,3399.3,0.06740081]
[1735638230453,1.25079725,3399.5,3399.2,0.8313]
[1735638231236,1.25079725,3399.5,3399.3,0.06740081]
[1735638231452,1.25079725,3399.5,3399.2,0.8313]
[1735638231630,1.25079725,3399.5,3399.4,0.06740081]
[1735638231969,1.25079725,3399.5,3399.2,0.8313]
[1735638232095,1.25079725,3399.3,3398.9,0.7681]
[1735638233408,2.94176,3399.4,3398.9,0.7681]
[1735638233609,1.25079725,3399.5,3398.9,0.7681]
[1735638233812,1.25079725,3399.5,3398.9,1.139141]
[1735638235595,1.25079725,3399.5,3399.0,0.7681]
[1735638235937,4.19223725,3399.7,3399.0,0.7681]
[1735638236229,3.0,3399.6,3399.0,0.7681]
[1735638236796,4.19223725,3399.7,3399.0,0.7681]
[1735638236997,4.19223725,3399.7,3399.1,0.4081351]
[1735638237243,1.25079725,3399.7,3399.1,0.4081351]
[1735638237395,2.94154,3399.6,3399.1,0.4081351]
[1735638238400,2.94154,3399.6,3399.2,0.06740081]
[1735638238726,2.94154,3399.6,3399.0,0.7681]
[1735638238924,2.94154,3399.6,3399.3,0.06740081]
[1735638239267,2.94154,3399.6,3399.4,0.06740081]
[1735638239837,1.25079725,3399.5,3399.0,0.7681]
[1735638240114,1.25079725,3399.5,3399.1,0.06726584]
[1735638240624,1.25079725,3399.5,3399.1,0.310602]
[1735638240849,1.25079725,3399.5,3399.2,0.8283]
[1735638241053,1.25079725,3399.7,3399.2,0.8283]
[1735638241363,1.25079725,3399.7,3399.3,0.06726584]
[1735638241726,1.25079725,3399.7,3399.2,0.8283]
[1735638241925,1.25079725,3399.7,3399.4,0.06726584]
[1735638242127,1.25079725,3399.7,3399.2,0.8283]
[1735638242348,1.25079725,3399.7,3399.5,0.06726584]
[1735638242527,1.25079725,3399.7,3399.2,0.8283]
[1735638242726,1.25079725,3399.7,3399.6,0.06726584]
[1735638242928,1.25079725,3399.7,3399.2,0.8283]
[1735638243350,1.25079725,3399.7,3399.3,0.06726584]
[1735638243877,1.25079725,3399.7,3399.4,0.06726584]
[1735638244252,1.25079725,3399.7,3399.2,0.8283]
[1735638244580,1.25079725,3399.7,3399.3,0.06726584]
[1735638244874,2.94118,3400.0,3399.3,0.8283]
[1735638245033,1.25079725,3400.0,3399.4,0.06726584]
[1735638245239,4.19198725,3400.0,3399.4,0.06726584]
[1735638246253,2.94119,3400.0,3399.5,0.8283]
[1735638246447,2.94119,3400.0,3399.6,0.06573665]
[1735638246448,4.19198725,3400.0,3399.6,0.06573665]
[1735638247074,1.25079725,3400.0,3399.6,0.06573665]
[1735638250135,4.19197725,3400.0,3399.6,0.06573665]
[1735638250674,1.25079725,3399.8,3399.6,0.06573665]
[1735638256599,2.94143,3399.7,3399.3,0.7846]
[1735638256972,2.94143,3399.7,3399.4,0.05884034]
[1735638257382,2.94143,3399.7,3399.3,0.7846]
[1735638257759,3.0,3400.0,3399.4,0.7846]
[1735638257983,4.19194725,3400.1,3399.4,0.7846]
[1735638257984,3.0,3400.2,3399.4,0.84344034]
[1735638258462,1.25079725,3400.1,3399.4,0.84344034]
[1735638258805,2.94119,3400.0,3399.4,0.84344034]
[1735638259212,1.25079725,3399.9,3399.4,1.77753565]
[1735638259787,1.25079725,3399.9,3399.4,0.84344034]
[1735638262212,2.94145,3399.7,3399.4,0.84344034]
[1735638263615,4.19211725,3399.9,3399.4,0.84344034]
[1735638263916,2.94135,3399.8,3399.4,0.84344034]
[1735638265021,2.94143,3399.7,3399.4,0.84344034]
[1735638265317,2.94152,3399.6,3399.4,0.05884034]
[1735638265619,2.94152,3399.6,3399.1,0.7846]
[1735638265918,2.94152,3399.6,3399.2,0.0587429]
[1735638267014,1.25079725,3399.5,3399.2,0.0587429]
[1735638268215,1.25079725,3399.5,3398.9,0.7846]
[1735638268395,1.25079725,3399.5,3399.0,0.0587429]
[1735638270337,1.25079725,3399.3,3399.0,0.0587429]
[1735638270821,1.25079725,3399.1,3399.0,0.0587429]
[1735638271326,1.25079725,3399.1,3399.0,0.0589228]
[1735638271624,1.25079725,3399.1,3399.0,0.05908023]
[1735638271828,1.25079725,3399.1,3398.7,0.8152]
[1735638271985,0.8307,3399.2,3398.4,0.8152]
[1735638271986,1.25079725,3398.9,3398.4,0.8152]
[1735638272185,1.25079725,3398.9,3398.5,0.68252968]
[1735638272488,1.25079725,3398.9,3398.6,0.05908023]
[1735638272688,3.69405818,3399.7,3398.6,0.05908023]
[1735638273003,1.25079725,3399.2,3398.7,0.8152]
[1735638273403,1.25079725,3399.2,3398.8,0.05908023]
[1735638273590,1.25079725,3399.2,3398.7,0.8152]
[1735638273787,1.25079725,3399.2,3398.8,0.43484723]
[1735638274350,3.8307,3399.6,3398.8,0.43484723]
[1735638274550,1.25079725,3399.5,3398.9,0.8152]
[1735638275025,1.25079725,3399.5,3399.0,0.0595075]
[1735638276210,1.25079725,3399.3,3399.0,0.0595075]
[1735638279028,1.25079725,3399.3,3398.6,0.8152]
[1735638279029,3.77256,3399.2,3398.6,0.8152]
[1735638279259,3.77256,3399.2,3398.7,0.0595075]
[1735638281786,1.25079725,3399.1,3398.7,0.0595075]
[1735638283450,1.25079725,3399.3,3398.7,0.44123325]
[1735638286265,4.19261725,3399.3,3398.7,0.0595075]
[1735638288499,0.8307,3399.4,3398.7,0.0595075]
[1735638288723,1.25079725,3399.2,3398.7,0.0595075]
[1735638290764,3.7553,3399.6,3398.8,0.8149]
[1735638291101,1.25079725,3399.5,3398.9,0.05983741]
[1735638292821,1.25079725,3399.3,3398.9,0.05983741]
[1735638293427,1.25079725,3399.1,3398.9,0.05983741]
[1735638293618,1.25079725,3399.1,3398.5,0.8149]
[1735638293819,4.19275725,3399.1,3398.5,2.08193751]
[1735638294137,4.19275725,3399.1,3398.6,0.05978492]
[1735638295607,1.25079725,3398.9,3398.6,0.05978492]
[1735638295805,1.25079725,3398.7,3398.6,0.05978492]
[1735638296131,2.00609725,3398.7,3398.6,0.05978492]
[1735638296534,2.00609725,3398.7,3398.2,2.33816333]
[1735638296703,2.00609725,3398.7,3398.6,0.05978492]
[1735638296902,2.00609725,3398.7,3398.2,0.8149]
[1735638297103,2.00609725,3398.7,3398.3,0.05978492]
[1735638297304,2.00609725,3398.7,3398.2,0.8149]
[1735638297809,2.00609725,3398.7,3398.3,0.05978492]
[1735638298010,2.00609725,3398.7,3398.2,0.8149]
[1735638298203,2.0045378,3398.7,3398.2,0.8149]
[1735638298447,1.25079725,3398.6,3398.3,0.05978492]
[1735638298746,1.25079725,3398.6,3398.2,0.8149]
[1735638299228,1.25079725,3398.6,3398.3,0.05978492]
[1735638299562,1.25079725,3398.6,3398.2,0.8149]
[1735638299726,0.7553,3398.7,3397.9,0.8149]
[1735638299727,1.25079725,3398.4,3397.9,0.8149]
[1735638300404,2.01849725,3398.2,3397.7,0.761]
[1735638300603,2.01849725,3398.2,3397.7,1.14383868]
[1735638300803,0.7677,3398.2,3397.7,1.14383868]
[1735638301044,2.9425,3398.5,3397.7,1.14383868]
[1735638301251,0.7677,3398.8,3398.0,0.55]
[1735638301446,0.7677,3399.2,3398.4,2.94255]
[1735638301632,0.7677,3399.2,3398.1,0.02942429]
[1735638301633,3.08299064,3399.0,3398.7,0.55]
[1735638301832,3.08299064,3399.0,3398.9,4.25312]
[1735638302513,2.94101,3400.2,3399.0,11.76202]
[1735638302514,8.78578089,3400.1,3399.0,11.76202]
[1735638302712,2.94118,3400.0,3399.1,1.252302]
[1735638302934,0.7677,3400.0,3398.9,0.761]
[1735638303105,5.78607089,3399.8,3398.9,0.761]
[1735638303308,2.84465089,3399.8,3398.9,0.761]
[1735638303532,2.94143,3399.7,3398.9,0.761]
[1735638303904,2.94155,3399.6,3398.9,0.761]
[1735638304538,0.35632431,3399.9,3399.0,0.55]
[1735638304741,3.0,3399.9,3399.0,0.55]
[1735638305381,2.84465089,3400.1,3399.0,0.55]
[1735638305382,0.7677,3400.3,3399.3,2.94174]
[1735638305547,0.7677,3400.3,3399.3,9.44174]
[1735638305548,3.70863,3400.3,3399.3,9.44174]
[1735638305854,3.0,3400.2,3399.3,10.46495532]
[1735638306059,3.70863,3400.3,3399.3,10.46495532]
[1735638306635,3.0,3400.2,3399.3,3.96495532]
[1735638306835,3.0,3400.2,3399.3,2.94174]
[1735638307027,0.7677,3400.3,3399.2,0.55]
[1735638307357,2.94103,3400.2,3399.2,3.49184]
[1735638308316,2.94103,3400.2,3399.3,0.761]
[1735638308574,3.0,3400.3,3399.5,0.761]
[1735638309557,3.0,3400.3,3399.6,0.55]
[1735638311776,3.0,3400.3,3399.6,0.975268]
[1735638312076,3.0,3400.1,3399.5,0.761]
[1735638313271,2.94117,3400.0,3399.5,0.761]
[1735638313481,2.94117,3400.0,3399.6,0.058578]
[1735638314535,2.94126,3399.9,3399.6,0.058578]
[1735638314737,2.94143,3399.7,3399.6,0.058578]
[1735638314934,8.78608089,3399.7,3399.6,0.058578]
[1735638315147,2.94179,3399.3,3399.0,6.5]
[1735638315567,2.94179,3399.3,3398.9,0.761]
[1735638318073,2.94162,3399.5,3398.9,0.761]
[1735638319592,2.94118,3400.0,3399.1,0.8016]
[1735638319757,2.94118,3400.0,3399.2,0.429363]
[1735638320344,2.94118,3400.0,3399.3,0.8016]
[1735638321159,3.63175089,3400.3,3399.3,0.8016]
[1735638321160,3.0,3400.1,3399.3,0.8016]
[1735638321369,2.84465089,3400.3,3399.3,0.8016]
[1735638321575,2.9409,3400.4,3399.4,0.8016]
[1735638321744,2.9409,3400.4,3399.5,1.0672663]
[1735638322266,2.94098,3400.3,3399.5,1.0672663]
[1735638322664,3.0,3400.2,3399.4,0.8016]
[1735638324889,5.94101,3400.2,3399.4,0.8016]
[1735638327356,3.0,3400.2,3399.4,3.74328]
[1735638327598,3.7278,3400.6,3399.8,0.55]
[1735638327854,2.9407,3400.6,3399.9,0.429299]
[1735638328347,2.94074,3400.5,3399.9,0.429299]
[1735638328552,2.94074,3400.5,3400.0,0.05907274]
[1735638331375,3.7871,3400.9,3400.0,0.05907274]
[1735638331633,2.94046,3400.9,3400.1,0.85000886]
[1735638331846,0.1684755,3401.0,3400.1,0.8206]
[1735638332134,3.1684755,3401.0,3400.3,0.8206]
[1735638332578,2.94042,3400.9,3400.4,0.05828571]
[1735638332783,5.78507089,3400.9,3400.4,0.05828571]
[1735638333576,2.94058,3400.7,3400.4,0.05828571]
[1735638333797,2.84465089,3400.9,3400.4,0.05828571]
[1735638334119,2.84465089,3400.9,3400.3,0.8206]
[1735638334322,5.78511089,3400.9,3400.4,0.05828571]
[1735638335288,2.94049,3400.8,3400.4,0.05828571]
[1735638336783,2.84465089,3400.9,3400.4,0.05828571]
[1735638336989,0.1684755,3401.0,3400.4,0.05828571]
[1735638340015,0.1684755,3401.0,3400.5,0.8206]
[1735638340438,0.1684755,3401.0,3400.6,0.05796351]
[1735638344015,0.1684755,3401.0,3400.7,0.8206]
[1735638344342,0.1684755,3401.0,3400.8,0.05752898]
[1735638344542,0.1684755,3401.0,3400.7,0.8206]
[1735638344758,0.1684755,3401.0,3400.8,0.05752898]
[1735638345263,0.1684755,3401.0,3400.7,0.8206]
[1735638345409,0.1684755,3401.0,3400.9,0.05752898]
[1735638345944,0.1684755,3401.0,3400.7,0.8206]
[1735638346116,0.1684755,3401.0,3400.8,0.05752898]
[1735638346440,0.1684755,3401.0,3400.7,0.8206]
[1735638346641,0.1684755,3401.0,3400.9,0.05752898]
[1735638346971,3.1684755,3401.0,3400.9,0.05720686]
[1735638347306,3.1684755,3401.0,3400.7,0.8206]
[1735638347508,3.1684755,3401.0,3400.8,0.78927435]
[1735638347810,3.1684755,3401.0,3400.8,0.05721435]
[1735638348119,0.1684755,3401.0,3400.7,0.8206]
[1735638348321,3.1087855,3401.0,3400.8,0.05721435]
[1735638348535,3.1087855,3401.0,3400.7,0.8206]
[1735638348852,3.1087855,3401.0,3400.8,0.05725929]
[1735638349251,3.1087855,3401.0,3400.7,0.8206]
[1735638349455,3.1087855,3401.0,3400.9,0.0573342]
[1735638349942,3.1087855,3401.0,3400.7,0.8206]
[1735638350128,3.1087855,3401.0,3400.8,0.0573342]
[1735638350329,3.1087855,3401.0,3400.7,0.8206]
[1735638350529,3.1087855,3401.0,3400.8,0.0573342]
[1735638350744,3.1087855,3401.0,3400.7,0.8206]
[1735638350944,3.69473,3400.9,3400.8,0.0573342]
[1735638351167,2.94052,3400.8,3400.5,0.789]
[1735638351317,3.69478,3400.9,3400.5,1.7499]
[1735638351518,2.94052,3400.8,3400.6,0.05730424]
[1735638352341,0.7543,3400.9,3400.6,0.05730424]
[1735638352527,2.94057,3400.7,3400.3,9.609]
[1735638352732,2.94057,3400.7,3400.4,0.05730424]
[1735638355167,3.69477,3400.9,3400.4,0.05730424]
[1735638356547,2.94047,3400.9,3400.4,0.05730424]
[1735638357252,0.1684755,3401.0,3400.4,0.05730424]
[1735638357253,0.1684755,3401.0,3400.6,0.55]
[1735638357658,0.1684755,3401.0,3400.7,0.05732668]
[1735638358030,0.1684755,3401.0,3400.8,0.789]
[1735638358237,0.1684755,3401.0,3400.8,0.84632668]
[1735638361166,3.1087955,3401.0,3400.8,0.05732668]
[1735638361356,0.9194755,3401.0,3400.8,0.05732668]
[1735638361627,2.94039,3400.9,3400.5,0.8214]
[1735638361828,2.94039,3400.9,3400.1,1.3714]
[1735638362063,2.94039,3400.9,3400.6,0.05717687]
[1735638362236,2.9405,3400.8,3400.1,1.3714]
[1735638362436,2.9405,3400.8,3400.7,0.05717687]
[1735638362653,0.9194755,3401.0,3400.1,1.3714]
[1735638362835,0.9194755,3401.0,3400.1,2.684671]
[1735638362836,2.94059,3400.7,3400.1,2.684671]
[1735638363154,0.9194755,3401.0,3400.2,0.05717687]
[1735638363555,2.9404,3400.9,3400.2,0.05717687]
[1735638365265,2.94049,3400.8,3400.2,0.05717687]
[1735638366357,0.9194755,3401.0,3400.2,0.05717687]
[1735638366554,3.8598255,3401.0,3400.2,0.33136166]
[1735638366869,2.94045,3400.9,3400.2,0.33136166]
[1735638367023,0.9194755,3401.0,3400.2,0.05717687]
[1735638367024,2.94059,3400.7,3400.2,0.05717687]
[1735638367229,2.94043,3400.9,3400.2,0.05717687]
[1735638368342,0.9194755,3401.0,3400.2,0.05717687]
[1735638368343,2.94056,3400.8,3400.2,0.05717687]
[1735638369866,0.9194755,3401.0,3400.2,0.05717687]
[1735638370646,2.94055,3400.8,3400.2,0.05717687]
[1735638371040,2.94058,3400.7,3400.2,0.05717687]
[1735638371763,2.84465089,3400.9,3400.2,0.05717687]
[1735638371944,5.78509089,3400.9,3400.2,0.05717687]
[1735638373359,2.94054,3400.8,3400.2,0.05717687]
[1735638373745,3.0,3400.5,3400.2,0.05717687]
[1735638374061,3.0,3400.5,3399.7,1.22695473]
[1735638374062,2.94117,3400.0,3399.7,1.22695473]
[1735638374240,2.94134,3399.9,3399.7,1.22695473]
[1735638374439,0.751,3399.8,3399.7,1.22695473]
[1735638374974,3.69234,3399.8,3399.0,2.04835473]
[1735638375471,0.751,3399.8,3399.0,2.04835473]
[1735638375771,0.751,3399.8,3399.0,0.8214]
[1735638376259,2.94118,3400.0,3399.2,0.7708]
[1735638376464,0.8169,3400.1,3399.2,0.7708]
[1735638377335,0.8169,3400.1,3399.3,0.426276]
[1735638377830,3.0,3400.2,3399.4,1.3208]
[1735638378036,3.0,3400.3,3399.4,1.3208]
[1735638378883,3.0,3400.3,3399.5,0.7708]
[1735638379059,0.8169,3400.6,3399.5,0.7708]
[1735638379375,2.9406,3400.7,3399.8,0.55]
[1735638379578,3.8169,3400.8,3399.9,0.7708]
[1735638379942,2.94071,3400.6,3399.9,0.7708]
[1735638382911,6.7574,3400.8,3399.9,0.7708]
[1735638383128,2.94058,3400.7,3399.9,0.7708]
[1735638383681,2.94058,3400.7,3399.9,1.2341479]
[1735638384777,0.8169,3400.8,3399.9,1.2341479]
[1735638384778,2.94066,3400.6,3399.9,1.2341479]
[1735638384983,2.94066,3400.6,3399.9,0.7708]
[1735638386444,0.8169,3400.8,3399.9,0.7708]
[1735638386445,2.94085,3400.4,3399.9,0.7708]
[1735638386643,2.94102,3400.2,3399.6,0.7708]
[1735638387792,2.94118,3400.0,3399.6,0.7708]
[1735638387938,3.75808,3400.0,3399.2,0.7708]
[1735638388459,3.75808,3400.0,3399.3,0.05429928]
[1735638389383,2.94146,3399.7,3399.3,0.05429928]
[1735638389589,2.94131,3399.9,3399.2,0.7708]
[1735638389894,3.66155089,3400.0,3399.2,0.7708]
[1735638390053,2.94147,3399.7,3399.3,0.05429928]
[1735638390413,2.94147,3399.7,3399.0,0.7708]
[1735638390589,2.94147,3399.7,3399.4,0.05457657]
[1735638390824,2.94147,3399.7,3399.0,0.7708]
[1735638391409,2.94147,3399.7,3399.1,0.054674]
[1735638392555,2.94152,3399.6,3399.1,0.054674]
[1735638393034,2.94169,3399.4,3399.1,0.054674]
[1735638393338,2.94169,3399.4,3398.7,0.7956]
[1735638393639,2.94169,3399.4,3398.8,0.05479394]
[1735638394444,2.94155,3399.6,3398.8,0.05479394]
[1735638394747,2.94166,3399.5,3398.8,0.05479394]
[1735638395055,3.72497,3399.2,3398.8,0.05479394]
[1735638395200,2.84465089,3399.1,3398.8,0.05479394]
[1735638395399,2.84465089,3399.1,3398.7,0.7956]
[1735638395903,2.84465089,3399.1,3398.8,0.05368427]
[1735638396301,2.94216,3398.9,3398.4,0.7956]
[1735638396739,2.84465089,3398.8,3398.5,0.05368427]
[1735638396949,5.78686089,3398.8,3398.5,0.05368427]
[1735638398352,2.84465089,3398.8,3398.5,0.05368427]
[1735638399471,0.7831,3398.7,3398.1,0.7956]
[1735638399919,0.7831,3398.7,3398.2,0.05435161]
[1735638401318,3.72541,3398.7,3398.1,0.7956]
[1735638401518,0.7831,3398.7,3398.2,0.05448662]
[1735638403466,3.7831,3398.7,3398.2,0.05448662]
[1735638403870,3.0,3398.7,3398.2,0.05448662]
[1735638404028,3.0,3398.9,3398.2,0.05448662]
[1735638404366,2.94178,3399.3,3398.4,0.7956]
[1735638404555,3.0,3399.2,3398.4,1.22988866]
[1735638404735,3.0,3399.2,3398.5,0.05433997]
[1735638406367,3.62775089,3399.4,3398.5,0.05433997]
[1735638406368,3.0,3399.0,3398.5,0.05433997]
[1735638406558,2.94238,3398.6,3398.5,0.05433997]
[1735638406872,2.94238,3398.6,3398.1,0.8267]
[1735638407379,2.94238,3398.6,3398.2,0.05242489]
[1735638407762,2.94238,3398.6,3398.1,0.8267]
[1735638408090,2.84465089,3398.5,3397.3,0.8267]
[1735638408230,5.78720089,3398.5,3397.6,0.8267]
[1735638408929,5.78720089,3398.5,3397.7,0.05242489]
[1735638409145,2.84465089,3398.5,3397.7,0.05242489]
[1735638409438,3.0,3398.1,3397.7,0.05242489]
[1735638409856,5.94286,3398.1,3397.7,0.05242489]
[1735638410646,3.0,3398.1,3397.7,0.05242489]
[1735638410873,5.94282,3398.1,3397.7,0.05242489]
[1735638411382,5.94282,3398.1,3397.6,0.8267]
[1735638411579,3.0,3398.1,3397.6,0.8267]
[1735638411740,2.943,3397.9,3397.7,0.05242489]
[1735638411941,3.7911,3397.8,3397.2,0.8267]
[1735638412147,3.7911,3397.8,3397.3,0.05242489]
[1735638412347,3.7911,3397.8,3397.2,0.8267]
[1735638412538,3.7911,3397.8,3397.3,0.05242489]
[1735638412758,3.7911,3397.8,3397.2,0.8267]
[1735638413261,3.7911,3397.8,3397.3,0.05242489]
[1735638413585,2.94319,3397.7,3397.2,0.8267]
[1735638413887,2.94319,3397.7,3397.3,0.05242489]
[1735638414058,3.0,3397.6,3397.3,0.05242489]
[1735638414260,3.7911,3397.8,3397.2,0.8267]
[1735638414701,3.7911,3397.8,3397.3,0.05242489]
[1735638415159,3.7911,3397.8,3397.2,0.8267]
[1735638415592,3.7911,3397.8,3397.3,0.05242489]
[1735638415917,3.7911,3397.8,3397.2,0.8267]
[1735638416180,3.7911,3397.8,3397.4,0.05242489]
[1735638416487,3.7911,3397.8,3397.2,0.8267]
[1735638416845,3.7911,3397.8,3397.3,0.05242489]
[1735638417289,3.7911,3397.8,3397.2,0.8267]
[1735638417475,3.7911,3397.8,3397.4,0.05334759]
[1735638417678,3.7911,3397.8,3397.2,0.8267]
[1735638418193,3.7911,3397.8,3397.3,0.05334759]
[1735638418362,3.7911,3397.8,3397.2,0.8267]
[1735638418685,3.7911,3397.8,3397.3,0.05334759]
[1735638418888,3.0,3397.8,3397.2,0.8267]
[1735638419584,5.94314,3397.8,3397.3,0.05334759]
[1735638419948,5.94314,3397.8,3397.2,0.8267]
[1735638420347,5.94314,3397.8,3397.3,0.05424779]
[1735638420547,5.94314,3397.8,3397.2,0.8267]
[1735638420863,5.94314,3397.8,3397.3,0.05424779]
[1735638421075,5.94314,3397.8,3397.2,0.8267]
[1735638421274,5.94314,3397.8,3397.4,0.05424779]
[1735638421591,3.0,3397.8,3397.2,0.8267]
[1735638421891,3.0,3397.8,3397.3,0.05424779]
[1735638422423,3.0,3397.8,3397.2,0.8267]
[1735638422549,5.94311,3397.8,3397.4,0.05424779]
[1735638422749,3.0,3397.8,3397.2,0.8267]
[1735638423064,3.0,3397.6,3397.3,0.05437537]
[1735638423388,3.0,3397.6,3397.2,0.8267]
[1735638423585,3.0,3397.6,3397.3,0.05437537]
[1735638423995,3.0,3397.6,3396.7,1.3317]
[1735638424285,3.0,3397.6,3396.8,0.48195337]
[1735638426210,0.8052,3398.0,3396.9,0.7817]
[1735638426391,3.64985089,3398.0,3396.9,0.7817]
[1735638426702,3.0,3397.7,3397.0,0.05447294]
[1735638428232,5.94321,3397.7,3397.0,0.05447294]
[1735638429882,3.0,3397.8,3397.1,0.7817]